bitfinex-derivatives/quotes_SOLF0:USTF0_20250404
["timestamp","ask_amount","ask_price","bid_price","bid_amount"]
[1743769139144,31.36122897,114.6,114.52,36.0]
[1743769139343,31.36122897,114.58,114.53,1.603818]
[1743769139545,67.36122897,114.58,114.51,36.0]
[1743769139746,67.36122897,114.58,114.52,1.60400368]
[1743769140148,3.48351274,114.57,114.51,36.0]
[1743769140340,0.06411783,114.56,114.51,36.0]
[1743769141037,0.06411783,114.56,114.52,1.60414668]
[1743769142045,0.06411783,114.56,114.53,62.0]
[1743769142244,0.06411783,114.56,114.54,37.62414668]
[1743769142443,0.06411783,114.56,114.54,36.02]
[1743769142846,313.82,114.66,114.55,32.96481138]
[1743769143043,14.60654479,114.65,114.56,1.60358241]
[1743769143245,14.60654479,114.65,114.57,36.02]
[1743769143445,36.91687376,114.64,114.58,1.60358241]
[1743769143746,36.91687376,114.64,114.57,36.02]
[1743769144048,0.06651345,114.62,114.59,0.05853282]
[1743769144245,0.06651345,114.62,114.6,36.02]
[1743769145545,0.06651345,114.62,114.6,98.02]
[1743769148950,4.4827,114.67,114.6,98.02]
[1743769149148,4.4205,114.69,114.6,98.02]
[1743769149849,4.4205,114.69,114.61,1.60259423]
[1743769150359,0.0600406,114.66,114.64,0.06206715]
[1743769150545,0.0600406,114.66,114.65,36.0]
[1743769151946,0.0600406,114.66,114.64,0.06206715]
[1743769153552,31.42126957,114.66,114.64,0.06206715]
[1743769153754,31.42126957,114.66,114.6,98.0]
[1743769153956,4.7443,114.65,114.6,98.0]
[1743769154153,4.7443,114.65,114.6,36.0]
[1743769154358,5.58053909,114.64,114.56,1.5288]
[1743769154657,5.58053909,114.64,114.57,37.60293851]
[1743769154854,5.58053909,114.64,114.59,0.05648453]
[1743769155061,0.05875372,114.62,114.59,36.05648453]
[1743769155957,31.41998269,114.62,114.59,0.05648453]
[1743769156352,0.05875372,114.62,114.59,0.05648453]
[1743769156555,9.1014287,114.61,114.55,36.0]
[1743769156856,3.50610884,114.6,114.52,1.5137]
[1743769157160,31.36122897,114.58,114.51,36.0]
[1743769157361,4.715,114.57,114.51,36.0]
[1743769157561,4.715,114.57,114.48,345.36122897]
[1743769157756,0.05921598,114.55,114.53,0.02652853]
[1743769158652,156.63859943,114.72,114.54,36.0]
[1743769158857,31.36122897,114.67,114.55,1.60373966]
[1743769159055,31.36122897,114.65,114.56,36.0]
[1743769159262,8.0060713,114.64,114.57,36.0]
[1743769159458,3.5072713,114.63,114.57,36.0]
[1743769159659,4.715,114.63,114.57,36.0]
[1743769159859,0.05810939,114.61,114.59,0.06693602]
[1743769162161,0.05810939,114.61,114.59,0.00042257]
[1743769162367,67.41933836,114.61,114.53,36.0]
[1743769162671,31.36122897,114.59,114.5,36.0]
[1743769162967,362.69445387,114.58,114.5,36.0]
[1743769163263,359.1861,114.58,114.51,62.0]
[1743769163464,0.05853597,114.55,114.51,62.0]
[1743769165867,0.05853597,114.55,114.51,93.36122897]
[1743769166766,0.05853597,114.55,114.51,62.0]
[1743769169570,31.41976494,114.55,114.48,36.0]
[1743769169864,70.86690903,114.55,114.43,31.46472897]
[1743769170066,0.05876565,114.53,114.44,36.0]
[1743769170268,67.36122897,114.55,114.45,1.60459745]
[1743769170470,0.06425981,114.5,114.46,36.0]
[1743769171169,0.06425981,114.5,114.42,31.36122897]
[1743769171372,381.50122897,114.51,114.43,37.60490172]
[1743769171568,0.06103017,114.47,114.43,36.0]
[1743769171769,0.06103017,114.47,114.4,34.67702897]
[1743769171968,9.1656,114.5,114.41,37.60496345]
[1743769172170,0.06320143,114.45,114.42,1.60496345]
[1743769172368,0.06320143,114.45,114.41,36.0]
[1743769172674,0.06320143,114.45,114.43,62.0]
[1743769172870,0.06320143,114.45,114.4,34.67702897]
[1743769172871,0.06320143,114.45,114.44,36.0]
[1743769175074,0.06320143,114.45,114.36,31.36122897]
[1743769175279,0.06320143,114.45,114.38,36.02]
[1743769175472,36.02,114.48,114.39,1.6054381]
[1743769175673,0.06077321,114.42,114.39,1.6054381]
[1743769175972,36.02,114.48,114.4,62.0]
[1743769176169,0.06083186,114.42,114.4,62.0]
[1743769176371,36.02,114.48,114.4,62.0]
[1743769176675,31.36122897,114.47,114.4,62.0]
[1743769176869,0.05620993,114.45,114.4,62.0]
[1743769177270,36.07620993,114.45,114.4,62.0]
[1743769177469,4.7569,114.44,114.4,62.0]
[1743769177679,9.5376,114.44,114.4,62.0]
[1743769178176,9.5376,114.44,114.38,36.02]
[1743769178478,9.5376,114.44,114.36,31.36122897]
[1743769178479,323.8376,114.44,114.39,1.60561773]
[1743769178668,0.06295529,114.42,114.38,1.60561773]
[1743769178872,0.06295529,114.42,114.37,36.02]
[1743769179072,0.06295529,114.42,114.38,1.60568285]
[1743769179979,0.06295529,114.42,114.37,36.02]
[1743769180277,0.06295529,114.42,114.38,1.60565448]
[1743769180778,0.06295529,114.42,114.37,36.02]
[1743769180980,0.06295529,114.42,114.38,1.60566944]
[1743769181280,0.06295529,114.42,114.39,62.0]
[1743769181979,0.06295529,114.42,114.4,37.62555502]
[1743769182180,0.06295529,114.42,114.4,36.02]
[1743769182380,9.3875,114.48,114.41,1.60537584]
[1743769183482,0.05988216,114.46,114.43,0.06095602]
[1743769183671,0.05988216,114.46,114.44,36.02]
[1743769183875,0.05988216,114.46,114.43,0.06095602]
[1743769185478,0.05988216,114.46,114.43,1.66615696]
[1743769186281,0.05988216,114.46,114.43,0.06095602]
[1743769193786,19.85276719,114.46,114.43,0.06095602]
[1743769195787,0.05988216,114.46,114.43,0.06095602]
[1743769195992,0.05988216,114.46,114.44,36.02]
[1743769197188,0.05988216,114.46,114.43,0.06095602]
[1743769197789,19.85276719,114.46,114.43,0.06095602]
[1743769198289,0.05988216,114.46,114.43,0.06095602]
[1743769204004,0.05988216,114.46,114.44,36.02]
[1743769207299,0.05988216,114.46,114.43,0.06095602]
[1743769207602,23.29678209,114.45,114.43,0.06095602]
[1743769207802,19.79288503,114.45,114.43,0.06095602]
[1743769208005,5.53155367,114.44,114.43,0.06095602]
[1743769208407,0.05988216,114.46,114.43,0.06095602]
[1743769208707,5.53329518,114.45,114.43,0.06095602]
[1743769209005,5.53329518,114.45,114.43,36.08095602]
[1743769209204,0.05988216,114.46,114.43,36.08095602]
[1743769210805,5.53907982,114.45,114.43,36.08095602]
[1743769211607,0.05988216,114.46,114.43,36.08095602]
[1743769212910,5.54865226,114.45,114.43,36.08095602]
[1743769213310,5.54865226,114.45,114.43,0.06095602]
[1743769213511,0.05988216,114.46,114.43,0.06095602]
[1743769214108,23.31241132,114.45,114.31,544.56841288]
[1743769214416,19.79288503,114.43,114.34,19.79288503]
[1743769214611,13.45914535,114.42,114.35,37.60597225]
[1743769214807,3.51952629,114.41,114.35,37.60597225]
[1743769215015,5.56251906,114.41,114.36,1.60597225]
[1743769215215,3.52259114,114.4,114.34,19.79288503]
[1743769215417,0.06694526,114.39,114.37,0.02080776]
[1743769215713,3.52284428,114.38,114.32,333.80057576]
[1743769215917,3.52284428,114.37,114.32,333.80057576]
[1743769216114,19.79288503,114.37,114.32,297.80057576]
[1743769216312,3.52443113,114.36,114.32,297.80057576]
[1743769216511,4.3551,114.36,114.32,297.80057576]
[1743769216713,5.62441598,114.35,114.32,297.80057576]
[1743769216912,5.56251906,114.34,114.32,297.80057576]
[1743769217413,0.06189692,114.35,114.32,297.80057576]
[1743769217609,0.06189692,114.35,114.33,19.79288503]
[1743769217915,9.113,114.4,114.34,36.02]
[1743769218211,4.3551,114.4,114.34,36.02]
[1743769218410,5.55284701,114.39,114.34,36.02]
[1743769218614,4.3551,114.4,114.34,36.02]
[1743769218906,0.05786316,114.38,114.36,0.06332968]
[1743769222412,19.85074819,114.38,114.36,0.06332968]
[1743769223116,0.05786316,114.38,114.36,0.06332968]
[1743769223417,0.05786316,114.38,114.36,36.08332968]
[1743769223615,0.05786316,114.38,114.37,62.0]
[1743769226719,0.05786316,114.38,114.36,0.06332968]
[1743769227219,19.85074819,114.38,114.36,0.06332968]
[1743769227716,19.85074819,114.38,114.34,36.02]
[1743769227717,19.85074819,114.38,114.32,36.02]
[1743769227920,5.539303,114.37,114.32,36.02]
[1743769228313,3.50593291,114.39,114.31,36.02]
[1743769228512,19.79288503,114.36,114.31,36.02]
[1743769228919,0.0659078,114.35,114.31,36.02]
[1743769229317,19.79288503,114.34,114.27,1.5183]
[1743769229518,19.79288503,114.34,114.28,37.6269117]
[1743769229715,0.05626504,114.31,114.29,63.6069117]
[1743769229914,0.05626504,114.31,114.29,98.02]
[1743769230218,0.05626504,114.31,114.29,62.0]
[1743769231121,0.05626504,114.31,114.27,36.02]
[1743769231321,0.05626504,114.31,114.28,1.60717019]
[1743769232324,0.05626504,114.31,114.28,36.02]
[1743769232723,0.05626504,114.31,114.24,3.3077]
[1743769232920,36.47448327,114.33,114.25,37.62734719]
[1743769233123,0.05742508,114.29,114.26,1.60734719]
[1743769233729,0.05742508,114.29,114.26,36.02]
[1743769233933,0.05742508,114.29,114.2,33.54008327]
[1743769234228,31.73838327,114.29,114.21,99.62763159]
[1743769234427,0.05767947,114.26,114.22,1.60763159]
[1743769234625,0.05767947,114.26,114.22,37.62763159]
[1743769235029,0.05767947,114.26,114.22,36.02]
[1743769235320,0.05767947,114.26,114.23,1.60795221]
[1743769235627,0.05767947,114.26,114.22,36.02]
[1743769235926,0.05767947,114.26,114.23,1.60795384]
[1743769236228,0.05767947,114.26,114.22,36.02]
[1743769236624,0.05767947,114.26,114.21,36.04]
[1743769236824,40.58518327,114.27,114.21,36.04]
[1743769237030,0.05751198,114.25,114.21,36.04]
[1743769237330,0.05751198,114.25,114.16,1.6873]
[1743769237331,31.79589525,114.25,114.16,1.6873]
[1743769237530,31.79589525,114.25,114.17,1.60846434]
[1743769237824,0.06008281,114.22,114.18,129.75838327]
[1743769238030,4.7352,114.28,114.2,31.73838327]
[1743769238220,4.7352,114.28,114.21,37.62846434]
[1743769238423,4.7352,114.28,114.22,1.60846434]
[1743769238623,4.7352,114.28,114.21,37.7236]
[1743769238831,31.73838327,114.26,114.14,36.04]
[1743769239026,31.73838327,114.26,114.15,34.92979554]
[1743769239222,0.06649438,114.21,114.19,0.06057175]
[1743769239629,0.06566911,114.21,114.19,0.06057175]
[1743769240832,0.06566911,114.21,114.14,37.64908727]
[1743769241028,31.73838327,114.22,114.15,1.60908727]
[1743769241333,31.73838327,114.2,114.16,63.75192711]
[1743769241834,0.06610526,114.19,114.16,63.75192711]
[1743769242130,0.06610526,114.19,114.16,62.0]
[1743769243432,0.06610526,114.19,114.17,36.04]
[1743769243620,0.06610526,114.19,114.18,1.6087839]
[1743769243825,4.5847,114.28,114.18,33.34716717]
[1743769244026,4.5847,114.28,114.19,1.6087839]
[1743769244229,4.5847,114.28,114.2,36.04]
[1743769244429,31.73838327,114.27,114.2,36.04]
[1743769245031,31.79665498,114.25,114.22,0.06283814]
[1743769245235,31.73838327,114.25,114.22,0.06283814]
[1743769245435,31.80465748,114.25,114.22,0.06283814]
[1743769245839,4.7067,114.24,114.22,0.06283814]
[1743769247033,0.06627421,114.25,114.22,0.06283814]
[1743769249431,31.80465748,114.25,114.22,0.06283814]
[1743769249939,0.06627421,114.25,114.22,0.06283814]
[1743769250133,0.06627421,114.25,114.22,36.12283814]
[1743769252241,0.06627421,114.25,114.23,1.6082172]
[1743769252435,0.06627421,114.25,114.22,36.12283814]
[1743769252636,0.06627421,114.25,114.23,1.60808749]
[1743769252935,19.8541316,114.31,114.23,1.60808749]
[1743769253139,29.3481316,114.33,114.24,19.8541316]
[1743769253339,4.3834,114.34,114.26,19.8541316]
[1743769253539,45.554,114.37,114.28,19.8541316]
[1743769253739,21.60299483,114.36,114.29,36.06]
[1743769253935,1.74886323,114.36,114.3,19.8541316]
[1743769254142,1.74886323,114.36,114.31,63.66780854]
[1743769254143,0.05731333,114.34,114.31,63.66780854]
[1743769254341,0.05731333,114.34,114.32,36.06]
[1743769256239,0.05731333,114.34,114.31,0.06085466]
[1743769257542,0.05731333,114.34,114.32,62.0]
[1743769257742,0.05731333,114.34,114.31,0.06085466]
[1743769258140,31.77624223,114.34,114.31,0.06085466]
[1743769260746,0.05731333,114.34,114.31,62.06085466]
[1743769261345,0.05731333,114.34,114.31,98.10085466]
[1743769263048,0.05731333,114.34,114.31,0.06085466]
[1743769263246,31.77624223,114.34,114.31,0.06085466]
[1743769264049,5.49796297,114.33,114.31,0.06085466]
[1743769264648,31.77624223,114.34,114.31,0.06085466]
[1743769264949,0.05731333,114.34,114.31,0.06085466]
[1743769265546,0.05731333,114.34,114.31,36.10085466]
[1743769265846,0.05731333,114.34,114.32,62.0]
[1743769268248,315.08,114.39,114.32,62.0]
[1743769268749,40.8900289,114.4,114.32,62.0]
[1743769268949,9.1711,114.4,114.32,93.7189289]
[1743769269150,35.20176453,114.42,114.33,1.60669363]
[1743769269448,0.06194478,114.37,114.35,0.05974754]
[1743769271454,36.08194478,114.37,114.35,0.05974754]
[1743769271652,31.7189289,114.36,114.26,31.7189289]
[1743769271844,40.5566289,114.36,114.27,37.62715748]
[1743769272048,40.5566289,114.36,114.28,1.60715748]
[1743769272249,40.5566289,114.36,114.29,62.0]
[1743769272653,31.7189289,114.34,114.25,39.1582]
[1743769272851,36.02,114.33,114.31,0.06604574]
[1743769273048,31.7189289,114.34,114.26,1.60731286]
[1743769273353,0.06700962,114.33,114.31,0.05901601]
[1743769273550,0.06700962,114.33,114.31,36.07901601]
[1743769273850,31.7189289,114.38,114.31,36.07901601]
[1743769274054,40.6928289,114.4,114.31,36.07901601]
[1743769274255,44.17865718,114.4,114.31,36.02]
[1743769274455,40.6928289,114.4,114.31,36.02]
[1743769274751,5.50727313,114.39,114.31,36.02]
[1743769274950,0.06361234,114.37,114.34,0.06425161]
[1743769275649,0.06361234,114.37,114.34,62.06425161]
[1743769276254,0.06361234,114.37,114.34,98.08425161]
[1743769277147,31.7189289,114.44,114.34,98.08425161]
[1743769277352,35.2020427,114.44,114.34,98.02]
[1743769277557,35.2020427,114.44,114.34,129.7389289]
[1743769277558,31.7189289,114.44,114.34,129.7389289]
[1743769277856,328.5404,114.47,114.36,31.7189289]
[1743769277857,360.2593289,114.47,114.36,31.7189289]
[1743769278055,5.498607,114.46,114.37,36.02]
[1743769278256,0.06103302,114.43,114.4,0.06384293]
[1743769278557,0.06103302,114.43,114.41,36.02]
[1743769281254,0.06103302,114.43,114.4,0.06384293]
[1743769285756,31.77996192,114.43,114.36,36.0]
[1743769286059,31.7189289,114.43,114.36,36.0]
[1743769286262,31.7189289,114.45,114.36,36.0]
[1743769286455,355.7476289,114.47,114.38,31.7189289]
[1743769286656,324.0287,114.47,114.39,37.60577892]
[1743769286857,9.2487,114.47,114.39,36.0]
[1743769287161,0.06591796,114.44,114.41,0.06650021]
[1743769287359,5.48293037,114.51,114.42,67.7189289]
[1743769287657,31.7189289,114.53,114.43,3.14722477]
[1743769287865,31.7189289,114.51,114.42,36.0]
[1743769288163,31.7189289,114.49,114.42,36.0]
[1743769288365,4.673,114.48,114.42,36.0]
[1743769288567,4.673,114.48,114.44,0.06264404]
[1743769288568,0.05794627,114.47,114.44,0.06264404]
[1743769288764,0.05794627,114.47,114.45,36.0]
[1743769288968,0.05794627,114.47,114.44,0.06264404]
[1743769289468,0.05794627,114.47,114.44,36.06264404]
[1743769290566,0.05794627,114.47,114.44,0.06264404]
[1743769291367,0.05794627,114.47,114.45,36.0]
[1743769293373,0.05794627,114.47,114.44,0.06264404]
[1743769294164,0.05794627,114.47,114.44,1.66766683]
[1743769294363,0.05794627,114.47,114.44,0.06264404]
[1743769294675,0.05794627,114.47,114.44,1.66761324]
[1743769295870,0.05794627,114.47,114.44,0.06264404]
[1743769296170,0.05794627,114.47,114.44,1.66750462]
[1743769297373,4.673,114.52,114.45,31.7189289]
[1743769297569,7.8403391,114.55,114.47,31.7189289]
[1743769297774,4.3599,114.55,114.48,1.60461134]
[1743769297974,75.53930247,114.55,114.48,1.60461134]
[1743769298175,31.7189289,114.53,114.47,35.98]
[1743769298370,31.7189289,114.53,114.45,35.98]
[1743769298570,31.77948369,114.51,114.45,35.98]
[1743769298773,9.2067,114.5,114.43,35.98]
[1743769298967,18.17558126,114.5,114.43,35.98]
[1743769299172,4.3599,114.49,114.43,35.98]
[1743769299368,31.7189289,114.47,114.4,35.98]
[1743769299579,31.7189289,114.45,114.35,31.7189289]
[1743769299876,14.69600298,114.44,114.42,0.06198553]
[1743769300178,14.69600298,114.44,114.37,1.60584421]
[1743769300475,9.2067,114.44,114.37,1.60584421]
[1743769300677,0.06691511,114.42,114.39,0.05912435]
[1743769300872,0.06691511,114.42,114.39,36.03912435]
[1743769301477,0.06691511,114.42,114.39,0.05912435]
[1743769302179,36.04691511,114.42,114.36,1.74886323]
[1743769302380,51.49870445,114.4,114.36,1.74886323]
[1743769302571,4.5135,114.39,114.36,1.74886323]
[1743769303073,4.3487,114.38,114.36,1.74886323]
[1743769303383,4.3487,114.38,114.36,1.80418867]
[1743769303384,4.40684888,114.38,114.36,1.80418867]
[1743769304178,4.5189,114.43,114.37,62.0]
[1743769304475,5.50159556,114.42,114.37,62.0]
[1743769305283,4.5189,114.43,114.37,62.0]
[1743769305481,0.05851615,114.41,114.38,0.0666071]
[1743769306179,0.05851615,114.41,114.39,35.98]
[1743769308281,0.05851615,114.41,114.39,87.47870445]
[1743769308477,4.5453,114.46,114.39,87.47870445]
[1743769308676,4.5453,114.46,114.4,62.0]
[1743769308876,9.0387,114.47,114.4,62.0]
[1743769309378,12.53029477,114.47,114.4,62.0]
[1743769309586,0.06538152,114.45,114.42,0.06174695]
[1743769309883,36.04538152,114.45,114.4,62.0]
[1743769310178,5.51190076,114.44,114.4,62.0]
[1743769310785,36.04538152,114.45,114.4,62.0]
[1743769310984,36.04538152,114.45,114.41,0.0575876]
[1743769311284,8.741,114.43,114.41,0.0575876]
[1743769311682,8.7413,114.42,114.41,0.0575876]
[1743769311881,54.99348955,114.44,114.37,35.98]
[1743769312079,4.3693,114.41,114.37,35.98]
[1743769312283,8.7428,114.4,114.37,35.98]
[1743769312478,4.3693,114.41,114.37,35.98]
[1743769312978,0.06129313,114.4,114.38,0.06579559]
[1743769314681,8.7435,114.39,114.38,0.06579559]
[1743769314881,0.06129313,114.4,114.38,62.06579559]
[1743769315279,8.7435,114.39,114.35,36.0]
[1743769315585,0.06129313,114.4,114.35,36.0]
[1743769315887,8.7448,114.38,114.35,36.0]
[1743769316288,8.7432,114.4,114.36,62.0]
[1743769316584,0.06589615,114.38,114.36,62.0]
[1743769316984,0.06589615,114.38,114.36,62.05681954]
[1743769317784,0.06589615,114.38,114.36,0.05681954]
[1743769318289,8.7451,114.37,114.36,0.05681954]
[1743769320893,14.27940876,114.37,114.36,0.05681954]
[1743769321682,53.78166504,114.37,114.36,1.954e-05]
[1743769322590,26.51939922,114.37,114.36,1.954e-05]
[1743769322793,14.27940876,114.37,114.36,1.954e-05]
[1743769323390,26.51769674,114.37,114.36,1.954e-05]
[1743769323887,58.25512072,114.37,114.28,36.0]
[1743769324093,31.73742398,114.33,114.25,4.6628]
[1743769324298,8.7526,114.28,114.26,36.0]
[1743769324494,31.73742398,114.31,114.23,36.0]
[1743769324688,36.0,114.3,114.23,36.0]
[1743769324993,0.05530549,114.28,114.26,0.05703422]
[1743769325197,0.05530549,114.28,114.24,62.0]
[1743769325498,8.7543,114.25,114.24,62.0]
[1743769325693,0.05530549,114.28,114.19,4.7]
[1743769325887,67.75742398,114.27,114.19,4.7]
[1743769326088,4.5845,114.26,114.19,4.7]
[1743769326297,8.9966,114.26,114.19,4.7]
[1743769326597,0.06164058,114.24,114.19,36.02]
[1743769326792,8.7579,114.21,114.19,36.02]
[1743769327199,8.81863984,114.21,114.19,36.02]
[1743769328094,0.06073984,114.21,114.19,36.02]
[1743769328795,0.06073984,114.21,114.2,62.0]
[1743769329198,8.81843984,114.21,114.2,62.0]
[1743769331101,8.7596,114.18,114.17,36.02]
[1743769331299,51.65520204,114.22,114.13,8.9758]
[1743769331494,0.06351398,114.19,114.14,37.62897346]
[1743769331700,8.7619,114.15,114.14,36.02]
[1743769331896,40.5172,114.21,114.14,37.62918085]
[1743769332101,0.06049213,114.16,114.14,36.02]
[1743769332303,8.7615,114.16,114.14,36.02]
[1743769332604,8.82448831,114.16,114.14,36.02]
[1743769333706,8.7619,114.15,114.14,36.02]
[1743769333906,8.7619,114.15,114.14,37.62922457]
[1743769334105,8.7619,114.15,114.14,99.62922457]
[1743769334306,0.06298831,114.16,114.14,99.62922457]
[1743769334307,8.82458831,114.16,114.14,99.62922457]
[1743769334605,8.82458831,114.16,114.15,1.60922457]
[1743769334803,0.06298831,114.16,114.15,10.37112457]
[1743769335196,323.6791,114.23,114.15,1.60922457]
[1743769335401,323.6791,114.23,114.14,149.67520204]
[1743769335607,323.6791,114.23,114.15,6.06190814]
[1743769335906,323.6791,114.23,114.16,1.60900814]
[1743769336101,8.7594,114.19,114.17,36.04]
[1743769336306,0.05608128,114.21,114.18,1.6651195]
[1743769336607,0.05608128,114.21,114.18,0.05611136]
[1743769338204,8.7589,114.19,114.18,0.05611136]
[1743769338507,51.65520204,114.2,114.16,1.60914395]
[1743769338807,8.7619,114.15,114.14,62.0]
[1743769339105,8.7619,114.15,114.14,63.60934352]
[1743769339801,0.06472933,114.16,114.14,63.60934352]
[1743769340002,0.06472933,114.16,114.15,1.60934352]
[1743769341805,8.82592933,114.16,114.15,1.60934352]
[1743769342208,0.06472933,114.16,114.14,62.0]
[1743769342704,8.7619,114.15,114.14,62.0]
[1743769342903,51.71993137,114.16,114.05,51.65520204]
[1743769343106,51.65520204,114.14,114.06,1.61003954]
[1743769343307,8.7672,114.09,114.06,10.37853954]
[1743769343504,87.69520204,114.14,114.07,1.61003954]
[1743769343713,8.7673,114.09,114.07,1.61003954]
[1743769343910,8.7673,114.09,114.08,62.0]
[1743769344116,0.05675836,114.09,114.08,62.0]
[1743769344413,0.05675836,114.09,114.08,63.61003954]
[1743769344607,0.05675836,114.09,114.08,72.37733954]
[1743769345012,0.05675836,114.09,114.08,106.8273]
[1743769345214,0.05675836,114.09,114.08,99.67031684]
[1743769345614,0.05675836,114.09,114.08,63.61031684]
[1743769345811,8.82325836,114.09,114.08,1.61031684]
[1743769346014,8.82325836,114.09,114.07,1.61031684]
[1743769346015,0.05675836,114.09,114.07,1.61031684]
[1743769346316,8.7673,114.08,114.07,1.61031684]
[1743769346812,0.05675836,114.09,114.06,1.61031684]
[1743769347012,0.05675836,114.09,114.07,1.61031684]
[1743769347207,0.05675836,114.09,114.06,1.61031684]
[1743769347412,8.7673,114.08,114.07,1.61031684]
[1743769347613,51.65520204,114.12,114.06,1.61031684]
[1743769347815,0.06719,114.09,114.07,1.61031684]
[1743769348114,0.06719,114.09,114.05,44.8291]
[1743769348115,8.7677,114.08,114.05,44.8291]
[1743769348309,0.06719,114.09,114.06,1.61051126]
[1743769348507,8.768,114.08,114.06,1.61051126]
[1743769348819,8.768,114.08,114.07,62.0]
[1743769349016,8.768,114.08,114.07,63.61051126]
[1743769349916,8.768,114.08,114.07,63.61051311]
[1743769350613,8.77,114.05,114.03,36.06]
[1743769350818,8.77,114.05,114.04,1.61076808]
[1743769351017,8.7704,114.04,114.03,37.67076808]
[1743769351217,8.7704,114.04,114.03,37.67080161]
[1743769351519,0.06220404,114.05,114.03,37.67080161]
[1743769351821,8.83180404,114.05,114.04,1.61080161]
[1743769352015,0.06220404,114.05,114.04,1.61080161]
[1743769352216,8.83180404,114.05,114.04,1.61080161]
[1743769352518,0.06220404,114.05,114.03,1.61080161]
[1743769352714,8.83180404,114.05,114.04,1.61080161]
[1743769352918,0.06220404,114.05,114.01,36.06]
[1743769353424,8.7712,114.03,114.02,63.61123708]
[1743769353717,8.7712,114.03,114.02,1.61125798]
[1743769353918,0.05577607,114.04,114.02,1.61125798]
[1743769354117,0.05577607,114.04,114.0,36.06]
[1743769354313,0.05577607,114.04,114.01,1.61129943]
[1743769354517,72.70243782,114.07,113.99,36.08]
[1743769354718,0.06698593,114.04,114.02,1.61129943]
[1743769354918,0.06698593,114.04,113.99,36.08]
[1743769355219,0.06698593,114.04,114.0,1.61136953]
[1743769355421,8.7715,114.03,114.01,1.61136953]
[1743769356020,8.7715,114.03,114.02,37.69136953]
[1743769356322,36.08,114.09,114.02,37.69114998]
[1743769356517,36.08,114.09,114.02,46.46254998]
[1743769356723,8.7698,114.05,114.03,63.61114998]
[1743769356923,8.7698,114.05,114.04,1.61114998]
[1743769357423,8.7704,114.04,114.03,62.0]
[1743769357617,36.08,114.09,114.03,63.61125681]
[1743769357821,0.05626844,114.05,114.03,63.61125681]
[1743769358127,8.82666844,114.05,114.04,1.61125681]
[1743769358518,8.82666844,114.05,114.04,1.6110945]
[1743769359420,0.05626844,114.05,114.04,1.6110945]
[1743769359723,0.05626844,114.05,114.04,1.61102712]
[1743769361222,0.05626844,114.05,114.03,62.0]
[1743769361522,8.82586844,114.05,114.04,1.61103226]
[1743769362122,0.05626844,114.05,114.04,1.61103226]
[1743769362720,0.05626844,114.05,114.04,10.38143226]
[1743769362924,0.05626844,114.05,114.04,10.38143585]
[1743769363123,0.05626844,114.05,114.04,1.61103585]
[1743769364324,0.05626844,114.05,114.03,1.61103585]
[1743769364527,0.05626844,114.05,114.02,44.8513]
[1743769364723,0.05626844,114.05,114.03,1.61118766]
[1743769365233,8.7715,114.03,114.01,36.08]
[1743769365527,8.7715,114.03,114.02,1.6112424]
[1743769365727,8.7708,114.04,114.02,1.6112424]
[1743769366225,8.7708,114.04,114.03,1.61119206]
[1743769366626,8.7712,114.03,114.02,1.61119206]
[1743769366920,0.05626844,114.05,114.02,1.61117784]
[1743769367721,8.7716,114.03,114.01,70.7724]
[1743769368025,8.7716,114.03,114.02,1.61119347]
[1743769369122,40.64443782,114.03,113.9,17.561]
[1743769369328,40.64443782,114.03,113.91,1.61160108]
[1743769369329,31.86443782,113.97,113.91,1.61160108]
[1743769369528,31.86443782,113.97,113.92,1.61160108]
[1743769369730,46.01506461,113.99,113.92,1.61160108]
[1743769369929,0.06619735,113.96,113.93,37.71160108]
[1743769370132,0.06619735,113.96,113.95,8.7773]
[1743769370329,0.06627442,113.96,113.95,1.61160108]
[1743769370721,9.365,114.02,113.95,1.61160108]
[1743769370926,4.7032,114.04,113.94,67.96443782]
[1743769371223,8.7746,113.99,113.95,1.6117514]
[1743769371430,347.42443782,114.03,113.95,1.6117514]
[1743769371630,5.50192624,114.02,113.95,1.6117514]
[1743769371831,5.50192624,114.02,113.96,1.6117514]
[1743769372031,0.05635687,114.0,113.97,108.9295413]
[1743769372330,8.82995687,114.0,113.98,1.6117514]
[1743769372532,8.82995687,114.0,113.97,45.3177899]
[1743769372732,8.82995687,114.0,113.98,1.61162976]
[1743769373026,8.7742,113.99,113.98,1.61162976]